[Event "Late-Titled-Tuesday-Blitz-April-02-2024"]
[Site "Chess.com"]
[Date "2024.04.02"]
[Round "3"]
[White "Darkdefense15"]
[Black "enriquebutti"]
[Result "1-0"]
[WhiteElo "2375"]
[BlackElo "2172"]
[TimeControl "180+1"]
[EndTime "14:25:54 PDT"]
[Termination "Darkdefense15 won by resignation"]

1. d4 {[%clk 0:03:00.9]} 1... Nf6 {[%clk 0:02:55.6]} 2. Bf4 {[%clk 0:03:00.7]}
2... d5 {[%clk 0:02:53.5]} 3. e3 {[%clk 0:03:00.6]} 3... e6 {[%clk 0:02:53.3]}
4. Nf3 {[%clk 0:03:00.5]} 4... c5 {[%clk 0:02:52.8]} 5. Nbd2 {[%clk 0:02:59.7]}
5... Bd6 {[%clk 0:02:52.2]} 6. Bg3 {[%clk 0:02:59.4]} 6... Qc7 {[%clk
0:02:51.9]} 7. c3 {[%clk 0:02:53.5]} 7... Nbd7 {[%clk 0:02:50.9]} 8. Bd3 {[%clk
0:02:49.7]} 8... e5 {[%clk 0:02:47.7]} 9. dxe5 {[%clk 0:02:47.8]} 9... Nxe5
{[%clk 0:02:47.1]} 10. Nxe5 {[%clk 0:02:48.4]} 10... Bxe5 {[%clk 0:02:46.8]} 11.
Nf3 {[%clk 0:02:47.6]} 11... Bd6 {[%clk 0:02:44.4]} 12. O-O {[%clk 0:02:33.8]}
12... Bxg3 {[%clk 0:02:39.1]} 13. hxg3 {[%clk 0:02:34.7]} 13... O-O {[%clk
0:02:38.4]} 14. b4 {[%clk 0:02:29.6]} 14... Bg4 {[%clk 0:02:31.3]} 15. Be2
{[%clk 0:02:26]} 15... Bxf3 {[%clk 0:02:24.1]} 16. Bxf3 {[%clk 0:02:26.9]} 16...
c4 {[%clk 0:02:22.9]} 17. Qd4 {[%clk 0:02:16.1]} 17... Rfd8 {[%clk 0:02:10.9]}
18. a4 {[%clk 0:02:15.5]} 18... Qb6 {[%clk 0:02:02.4]} 19. Qf4 {[%clk
0:02:06.1]} 19... Qd6 {[%clk 0:01:57.1]} 20. Qxd6 {[%clk 0:01:57.2]} 20... Rxd6
{[%clk 0:01:56.1]} 21. Rfd1 {[%clk 0:01:57.9]} 21... Rad8 {[%clk 0:01:55.1]} 22.
Rd4 {[%clk 0:01:53]} 22... Kf8 {[%clk 0:01:52.4]} 23. Rad1 {[%clk 0:01:52.5]}
23... Ke7 {[%clk 0:01:51.9]} 24. g4 {[%clk 0:01:50.5]} 24... h6 {[%clk
0:01:47.6]} 25. Kf1 {[%clk 0:01:43.7]} 25... Ke6 {[%clk 0:01:46.4]} 26. g3
{[%clk 0:01:39.4]} 26... b6 {[%clk 0:01:41.8]} 27. Ra1 {[%clk 0:01:37.4]} 27...
a6 {[%clk 0:01:40.6]} 28. Rad1 {[%clk 0:01:33.3]} 28... b5 {[%clk 0:01:20.8]}
29. axb5 {[%clk 0:01:33.3]} 29... axb5 {[%clk 0:01:20.1]} 30. Ra1 {[%clk
0:01:34]} 30... Nh7 {[%clk 0:01:17.7]} 31. Ra5 {[%clk 0:01:30.5]} 31... Rb6
{[%clk 0:01:12.8]} 32. Bg2 {[%clk 0:01:24]} 32... Nf6 {[%clk 0:01:11.2]} 33. Ke2
{[%clk 0:01:13.8]} 33... Rdd6 {[%clk 0:01:09]} 34. Ra8 {[%clk 0:01:12.2]} 34...
Nd7 {[%clk 0:01:06.5]} 35. f4 {[%clk 0:01:07.5]} 35... Nf6 {[%clk 0:01:05.2]}
36. Bf3 {[%clk 0:01:03.8]} 36... g5 {[%clk 0:01:02.3]} 37. Rh8 {[%clk
0:00:59.8]} 1-0

[Event "Late-Titled-Tuesday-Blitz-April-02-2024"]
[Site "Chess.com"]
[Date "2024.04.02"]
[Round "3"]
[White "Lady_Nika"]
[Black "platy3"]
[Result "0-1"]
[WhiteElo "2546"]
[BlackElo "2947"]
[TimeControl "180+1"]
[EndTime "14:25:57 PDT"]
[Termination "platy3 won by resignation"]

1. c4 {[%clk 0:03:00.9]} 1... Nf6 {[%clk 0:02:58.9]} 2. Nc3 {[%clk 0:03:00.8]}
2... e5 {[%clk 0:02:54.8]} 3. d3 {[%clk 0:02:59.9]} 3... Nc6 {[%clk 0:02:54.5]}
4. e4 {[%clk 0:03:00]} 4... Bb4 {[%clk 0:02:53.6]} 5. Bd2 {[%clk 0:03:00.1]}
5... d6 {[%clk 0:02:52.4]} 6. Nd5 {[%clk 0:03:00]} 6... Bc5 {[%clk 0:02:49.7]}
7. Be2 {[%clk 0:02:50.3]} 7... h6 {[%clk 0:02:48]} 8. h3 {[%clk 0:02:48.9]} 8...
a5 {[%clk 0:02:47.5]} 9. Nf3 {[%clk 0:02:49]} 9... O-O {[%clk 0:02:47.4]} 10.
O-O {[%clk 0:02:49.1]} 10... Nh7 {[%clk 0:02:44.2]} 11. Be3 {[%clk 0:02:46.2]}
11... f5 {[%clk 0:02:41.4]} 12. exf5 {[%clk 0:02:46.3]} 12... Bxf5 {[%clk
0:02:41.3]} 13. d4 {[%clk 0:02:46.1]} 13... exd4 {[%clk 0:02:28.8]} 14. Nxd4
{[%clk 0:02:45.8]} 14... Bxd4 {[%clk 0:02:20.2]} 15. Bxd4 {[%clk 0:02:45.8]}
15... Qd7 {[%clk 0:02:17.4]} 16. Bc3 {[%clk 0:02:41.7]} 16... Ng5 {[%clk
0:02:13.4]} 17. Ne3 {[%clk 0:02:29]} 17... Be6 {[%clk 0:02:09.9]} 18. Bg4 {[%clk
0:02:28.8]} 18... Rae8 {[%clk 0:02:07.9]} 19. Bxe6+ {[%clk 0:02:28]} 19... Nxe6
{[%clk 0:02:06]} 20. Qd5 {[%clk 0:02:26.6]} 20... Qf7 {[%clk 0:02:04.6]} 21. Ng4
{[%clk 0:02:14.4]} 21... h5 {[%clk 0:01:55]} 22. Ne3 {[%clk 0:02:08.6]} 22...
Nf4 {[%clk 0:01:54.8]} 23. Qg5 {[%clk 0:01:42.9]} 23... Re6 {[%clk 0:01:48.4]}
24. Nd5 {[%clk 0:01:35.4]} 24... Nxh3+ {[%clk 0:01:45.2]} 25. gxh3 {[%clk
0:01:32.2]} 25... Rg6 {[%clk 0:01:44.8]} 26. f4 {[%clk 0:01:32.2]} 26... Rxg5+
{[%clk 0:01:39.3]} 27. fxg5 {[%clk 0:01:32.1]} 27... Qe6 {[%clk 0:01:38.2]} 28.
Rxf8+ {[%clk 0:01:31.3]} 28... Kxf8 {[%clk 0:01:39.1]} 29. Rf1+ {[%clk
0:01:00.5]} 29... Kg8 {[%clk 0:01:38.1]} 30. Rf3 {[%clk 0:00:54.7]} 30... Ne5
{[%clk 0:01:30.7]} 31. Rg3 {[%clk 0:00:44.7]} 31... c6 {[%clk 0:01:28]} 32. Nf4
{[%clk 0:00:33.2]} 32... Qxc4 {[%clk 0:01:28]} 33. Nxh5 {[%clk 0:00:32.3]} 33...
Qe2 {[%clk 0:01:27.4]} 34. Nf4 {[%clk 0:00:29.6]} 34... Nf3+ {[%clk 0:01:26.7]}
0-1

[Event "Late-Titled-Tuesday-Blitz-April-02-2024"]
[Site "Chess.com"]
[Date "2024.04.02"]
[Round "3"]
[White "SpeedofLight0"]
[Black "Hamisandwich"]
[Result "1-0"]
[WhiteElo "3054"]
[BlackElo "2706"]
[TimeControl "180+1"]
[EndTime "14:25:59 PDT"]
[Termination "SpeedofLight0 won on time"]

1. d4 {[%clk 0:03:00.9]} 1... Nf6 {[%clk 0:02:54.5]} 2. Nc3 {[%clk 0:03:00.9]}
2... d5 {[%clk 0:02:52.7]} 3. Bf4 {[%clk 0:03:01.6]} 3... a6 {[%clk 0:02:52.9]}
4. e3 {[%clk 0:03:00.9]} 4... b5 {[%clk 0:02:51.9]} 5. Bd3 {[%clk 0:03:00.3]}
5... Bb7 {[%clk 0:02:49.2]} 6. g4 {[%clk 0:03:00.4]} 6... h6 {[%clk 0:02:48.1]}
7. Nf3 {[%clk 0:02:59.1]} 7... Nxg4 {[%clk 0:02:34.7]} 8. Rg1 {[%clk 0:02:54.5]}
8... Nf6 {[%clk 0:02:33.1]} 9. Ne5 {[%clk 0:02:55.2]} 9... e6 {[%clk 0:02:26.1]}
10. Qf3 {[%clk 0:02:51.8]} 10... Nbd7 {[%clk 0:02:21.3]} 11. Nxf7 {[%clk
0:02:37.2]} 11... Kxf7 {[%clk 0:02:20.8]} 12. Bg6+ {[%clk 0:02:37.2]} 12... Kg8
{[%clk 0:02:17.8]} 13. O-O-O {[%clk 0:02:33.3]} 13... b4 {[%clk 0:02:06.9]} 14.
Ne2 {[%clk 0:02:30.5]} 14... Rc8 {[%clk 0:01:59.8]} 15. Be5 {[%clk 0:02:26.1]}
15... c5 {[%clk 0:01:58.5]} 16. Nf4 {[%clk 0:02:23.1]} 16... Qe7 {[%clk
0:01:44.9]} 17. Qh3 {[%clk 0:02:18.3]} 17... Rc6 {[%clk 0:01:39.3]} 18. Rg3
{[%clk 0:02:12.6]} 18... Nxe5 {[%clk 0:01:30.6]} 19. dxe5 {[%clk 0:02:13.5]}
19... Nd7 {[%clk 0:01:31.3]} 20. Qh5 {[%clk 0:02:04.7]} 20... c4 {[%clk
0:01:15]} 21. Rdg1 {[%clk 0:02:04.1]} 21... b3 {[%clk 0:01:14.1]} 22. axb3
{[%clk 0:01:58.1]} 22... cxb3 {[%clk 0:01:15]} 23. c3 {[%clk 0:01:58.7]} 23...
a5 {[%clk 0:00:53.5]} 24. Rf3 {[%clk 0:01:56]} 24... Rxc3+ {[%clk 0:00:34.8]}
25. Kb1 {[%clk 0:01:37.9]} 25... d4 {[%clk 0:00:22.6]} 26. Nd5 {[%clk 0:01:35]}
26... Nxe5 {[%clk 0:00:14.7]} 27. Nxe7+ {[%clk 0:01:32.5]} 27... Bxe7 {[%clk
0:00:15.6]} 28. Qxe5 {[%clk 0:01:25.1]} 28... Bxf3 {[%clk 0:00:15.8]} 29. Qxe6+
{[%clk 0:01:25.4]} 1-0

[Event "Late-Titled-Tuesday-Blitz-April-02-2024"]
[Site "Chess.com"]
[Date "2024.04.02"]
[Round "3"]
[White "KaydenTroffChess"]
[Black "ImportedItalianMaple"]
[Result "1-0"]
[WhiteElo "2839"]
[BlackElo "2526"]
[TimeControl "180+1"]
[EndTime "14:26:00 PDT"]
[Termination "KaydenTroffChess won by checkmate"]

1. d4 {[%clk 0:02:59.6]} 1... g6 {[%clk 0:02:58.7]} 2. Nf3 {[%clk 0:02:58.3]}
2... Bg7 {[%clk 0:02:59.1]} 3. Bg5 {[%clk 0:02:58.4]} 3... h6 {[%clk 0:02:56.4]}
4. Bh4 {[%clk 0:02:58.4]} 4... g5 {[%clk 0:02:54.2]} 5. Bg3 {[%clk 0:02:58.8]}
5... d6 {[%clk 0:02:54.5]} 6. Nc3 {[%clk 0:02:58.9]} 6... b6 {[%clk 0:02:52.3]}
7. e3 {[%clk 0:02:58.9]} 7... Bb7 {[%clk 0:02:52.6]} 8. Be2 {[%clk 0:02:56]}
8... Nd7 {[%clk 0:02:47.3]} 9. a4 {[%clk 0:02:55.2]} 9... a6 {[%clk 0:02:47]}
10. h4 {[%clk 0:02:34.4]} 10... g4 {[%clk 0:02:45.8]} 11. Nd2 {[%clk 0:02:34.6]}
11... h5 {[%clk 0:02:45.6]} 12. f3 {[%clk 0:02:34.8]} 12... f5 {[%clk
0:02:41.6]} 13. fxg4 {[%clk 0:02:14.3]} 13... fxg4 {[%clk 0:02:40.2]} 14. O-O
{[%clk 0:02:07.2]} 14... Ngf6 {[%clk 0:02:38.4]} 15. Bd3 {[%clk 0:01:58.9]}
15... e5 {[%clk 0:02:34.2]} 16. Bg6+ {[%clk 0:01:57.8]} 16... Ke7 {[%clk
0:02:32.3]} 17. Nde4 {[%clk 0:01:57.1]} 17... Rh6 {[%clk 0:02:11]} 18. Bf5
{[%clk 0:01:30.8]} 18... Qh8 {[%clk 0:01:44.8]} 19. Ng5 {[%clk 0:01:22.5]} 19...
Rg8 {[%clk 0:00:51.1]} 20. Qd3 {[%clk 0:00:58.1]} 20... Rf8 {[%clk 0:00:26.7]}
21. Qc4 {[%clk 0:00:53.9]} 21... Kd8 {[%clk 0:00:20.7]} 22. Ne6+ {[%clk
0:00:53.7]} 22... Kc8 {[%clk 0:00:21.2]} 23. Qxc7# {[%clk 0:00:47.3]} 1-0

[Event "Late-Titled-Tuesday-Blitz-April-02-2024"]
[Site "Chess.com"]
[Date "2024.04.02"]
[Round "3"]
[White "Kostukov_Alex"]
[Black "chessisveryfun1264"]
[Result "0-1"]
[WhiteElo "2294"]
[BlackElo "2507"]
[TimeControl "180+1"]
[EndTime "14:26:00 PDT"]
[Termination "chessisveryfun1264 won on time"]

1. g3 {[%clk 0:02:59.9]} 1... c5 {[%clk 0:03:00.9]} 2. Bg2 {[%clk 0:03:00.2]}
2... d5 {[%clk 0:02:50.7]} 3. d3 {[%clk 0:03:00]} 3... Nf6 {[%clk 0:02:50.9]} 4.
e4 {[%clk 0:03:00.3]} 4... e6 {[%clk 0:02:51.3]} 5. Qe2 {[%clk 0:02:59.8]} 5...
Be7 {[%clk 0:02:50.9]} 6. e5 {[%clk 0:03:00.3]} 6... Nfd7 {[%clk 0:02:50.9]} 7.
Nf3 {[%clk 0:03:01]} 7... Nc6 {[%clk 0:02:51.8]} 8. O-O {[%clk 0:03:01.1]} 8...
O-O {[%clk 0:02:52.5]} 9. c4 {[%clk 0:03:00.9]} 9... d4 {[%clk 0:02:48.8]} 10.
Re1 {[%clk 0:02:58.3]} 10... Rb8 {[%clk 0:02:47.7]} 11. h4 {[%clk 0:02:56.7]}
11... h6 {[%clk 0:02:46.8]} 12. h5 {[%clk 0:02:55.2]} 12... a6 {[%clk 0:02:47]}
13. Bf4 {[%clk 0:02:51.4]} 13... b5 {[%clk 0:02:46.5]} 14. Na3 {[%clk
0:02:42.6]} 14... bxc4 {[%clk 0:02:39.7]} 15. Nxc4 {[%clk 0:02:40.8]} 15... Nb6
{[%clk 0:02:39.6]} 16. b3 {[%clk 0:02:25.1]} 16... a5 {[%clk 0:02:39.4]} 17. Nh2
{[%clk 0:02:14.7]} 17... Bd7 {[%clk 0:02:38.1]} 18. Ng4 {[%clk 0:02:13.1]} 18...
Bg5 {[%clk 0:02:33.2]} 19. Qd2 {[%clk 0:01:58.1]} 19... Nxc4 {[%clk 0:02:30.6]}
20. bxc4 {[%clk 0:01:45.4]} 20... Bxf4 {[%clk 0:02:29.8]} 21. Qxf4 {[%clk
0:01:44.5]} 21... Qg5 {[%clk 0:02:30.4]} 22. Qxg5 {[%clk 0:01:41.4]} 22... hxg5
{[%clk 0:02:31.3]} 23. h6 {[%clk 0:01:42.1]} 23... f5 {[%clk 0:02:28.3]} 24.
exf6 {[%clk 0:01:31.1]} 24... gxf6 {[%clk 0:02:29.2]} 25. Bxc6 {[%clk 0:01:26]}
25... Bxc6 {[%clk 0:02:30.1]} 26. Rxe6 {[%clk 0:01:24.8]} 26... Bf3 {[%clk
0:02:25.2]} 27. Nh2 {[%clk 0:00:44.7]} 27... Bh5 {[%clk 0:02:13.5]} 28. Re7
{[%clk 0:00:20]} 28... Bg6 {[%clk 0:02:11.5]} 29. Rae1 {[%clk 0:00:17]} 29...
Rf7 {[%clk 0:02:09.7]} 30. Re8+ {[%clk 0:00:11.1]} 30... Rxe8 {[%clk 0:02:09.6]}
31. Rxe8+ {[%clk 0:00:12]} 31... Kh7 {[%clk 0:02:09.8]} 32. Rc8 {[%clk
0:00:10.5]} 32... Bxd3 {[%clk 0:02:09.2]} 33. Rxc5 {[%clk 0:00:10.3]} 33... Be4
{[%clk 0:02:09.4]} 34. f3 {[%clk 0:00:08.3]} 34... Bg6 {[%clk 0:02:03]} 35. Ng4
{[%clk 0:00:07]} 35... d3 {[%clk 0:02:01.7]} 36. Rd5 {[%clk 0:00:06.7]} 36...
Rb7 {[%clk 0:01:52.1]} 37. Nxf6+ {[%clk 0:00:04.4]} 37... Kxh6 {[%clk
0:01:52.6]} 38. Ne4 {[%clk 0:00:04.3]} 38... Rb1+ {[%clk 0:01:53]} 39. Kf2
{[%clk 0:00:04.4]} 39... Rb2+ {[%clk 0:01:51.1]} 40. Ke3 {[%clk 0:00:03.7]}
40... a4 {[%clk 0:01:51.5]} 0-1

[Event "Late-Titled-Tuesday-Blitz-April-02-2024"]
[Site "Chess.com"]
[Date "2024.04.02"]
[Round "3"]
[White "Mikayel99"]
[Black "simaopdias"]
[Result "1-0"]
[WhiteElo "2540"]
[BlackElo "2321"]
[TimeControl "180+1"]
[EndTime "14:26:01 PDT"]
[Termination "Mikayel99 won by resignation"]

1. e4 {[%clk 0:03:00.9]} 1... e5 {[%clk 0:02:55]} 2. f4 {[%clk 0:03:00.5]} 2...
Nc6 {[%clk 0:02:55.9]} 3. Nf3 {[%clk 0:02:57.1]} 3... d6 {[%clk 0:02:55.4]} 4.
fxe5 {[%clk 0:02:56.6]} 4... dxe5 {[%clk 0:02:53.9]} 5. d4 {[%clk 0:02:57.3]}
5... exd4 {[%clk 0:02:52.1]} 6. Bb5 {[%clk 0:02:56.6]} 6... Bd7 {[%clk
0:02:48.2]} 7. O-O {[%clk 0:02:56.5]} 7... Be7 {[%clk 0:02:46]} 8. Bc4 {[%clk
0:02:47.3]} 8... Nf6 {[%clk 0:02:45]} 9. e5 {[%clk 0:02:47.6]} 9... Ng4 {[%clk
0:02:43]} 10. Bxf7+ {[%clk 0:02:19.4]} 10... Kxf7 {[%clk 0:02:41.3]} 11. e6+
{[%clk 0:02:17.2]} 11... Kg8 {[%clk 0:02:39.1]} 12. exd7 {[%clk 0:02:15.1]}
12... Qxd7 {[%clk 0:02:38.7]} 13. h3 {[%clk 0:02:13]} 13... Nf6 {[%clk
0:02:33.2]} 14. Nbd2 {[%clk 0:02:12.5]} 14... Rd8 {[%clk 0:02:27.3]} 15. Nb3
{[%clk 0:02:06.1]} 15... h6 {[%clk 0:02:17.7]} 16. Bf4 {[%clk 0:01:58.9]} 16...
Bd6 {[%clk 0:02:11.3]} 17. Bxd6 {[%clk 0:01:43.1]} 17... Qxd6 {[%clk 0:02:12.2]}
18. Qd3 {[%clk 0:01:42.5]} 18... Nb4 {[%clk 0:01:55.8]} 19. Qc4+ {[%clk
0:01:31.3]} 19... Kh7 {[%clk 0:01:54.4]} 20. Nbxd4 {[%clk 0:01:24.1]} 20... Rhe8
{[%clk 0:01:43.9]} 21. Kh1 {[%clk 0:01:14.6]} 21... Qb6 {[%clk 0:01:39.4]} 22.
Nf5 {[%clk 0:01:08.3]} 22... Rd5 {[%clk 0:01:27.6]} 23. N3h4 {[%clk 0:00:54.8]}
23... c5 {[%clk 0:01:16.4]} 24. a3 {[%clk 0:00:45.9]} 24... Nc6 {[%clk
0:01:14.2]} 25. Nxg7 {[%clk 0:00:36.9]} 25... Kxg7 {[%clk 0:01:11.3]} 26. Rxf6
{[%clk 0:00:34.8]} 26... Kxf6 {[%clk 0:01:09.7]} 27. Qxd5 {[%clk 0:00:33.4]}
27... Re5 {[%clk 0:01:04.1]} 28. Rf1+ {[%clk 0:00:32.9]} 28... Kg5 {[%clk
0:01:02.3]} 29. Nf3+ {[%clk 0:00:27.6]} 1-0

[Event "Late-Titled-Tuesday-Blitz-April-02-2024"]
[Site "Chess.com"]
[Date "2024.04.02"]
[Round "3"]
[White "Franmu14"]
[Black "ural58"]
[Result "1-0"]
[WhiteElo "2682"]
[BlackElo "2479"]
[TimeControl "180+1"]
[EndTime "14:26:02 PDT"]
[Termination "Franmu14 won on time"]

1. e4 {[%clk 0:03:00.9]} 1... d5 {[%clk 0:02:56.7]} 2. exd5 {[%clk 0:03:01.2]}
2... Qxd5 {[%clk 0:02:55.2]} 3. Nc3 {[%clk 0:03:01.3]} 3... Qd6 {[%clk
0:02:54.7]} 4. d4 {[%clk 0:03:01]} 4... c6 {[%clk 0:02:54.4]} 5. Nf3 {[%clk
0:03:01.6]} 5... Bf5 {[%clk 0:02:53.9]} 6. Bd3 {[%clk 0:02:55.7]} 6... Bxd3
{[%clk 0:02:51.2]} 7. Qxd3 {[%clk 0:02:56.6]} 7... Nf6 {[%clk 0:02:50.2]} 8. Bg5
{[%clk 0:02:57.2]} 8... Nbd7 {[%clk 0:02:48.7]} 9. O-O-O {[%clk 0:02:57.8]} 9...
e6 {[%clk 0:02:48.4]} 10. Rhe1 {[%clk 0:02:56.4]} 10... Be7 {[%clk 0:02:48]} 11.
Bh4 {[%clk 0:02:54.3]} 11... Qf4+ {[%clk 0:02:03.3]} 12. Kb1 {[%clk 0:02:52.4]}
12... Nb6 {[%clk 0:02:01.9]} 13. Bg3 {[%clk 0:02:45]} 13... Qh6 {[%clk
0:02:00.6]} 14. Ne5 {[%clk 0:02:38]} 14... Nbd5 {[%clk 0:01:47.4]} 15. Nxd5
{[%clk 0:02:32.1]} 15... Nxd5 {[%clk 0:01:46.8]} 16. Qb3 {[%clk 0:02:30]} 16...
Nb6 {[%clk 0:01:41.8]} 17. a4 {[%clk 0:02:18.9]} 17... O-O {[%clk 0:01:10.6]}
18. h4 {[%clk 0:02:06.7]} 18... Rfd8 {[%clk 0:00:40.7]} 19. h5 {[%clk
0:01:48.6]} 19... Rab8 {[%clk 0:00:27.5]} 20. a5 {[%clk 0:01:23]} 20... Nd5
{[%clk 0:00:22.6]} 21. Nxc6 {[%clk 0:01:22.8]} 21... bxc6 {[%clk 0:00:08.8]} 22.
Bxb8 {[%clk 0:01:22.8]} 22... Bb4 {[%clk 0:00:08.9]} 23. Bc7 {[%clk 0:01:21.2]}
23... Nxc7 {[%clk 0:00:04.2]} 24. Qxb4 {[%clk 0:01:20.9]} 24... Qxh5 {[%clk
0:00:03.7]} 25. Qe7 {[%clk 0:01:15.5]} 1-0

[Event "Late-Titled-Tuesday-Blitz-April-02-2024"]
[Site "Chess.com"]
[Date "2024.04.02"]
[Round "3"]
[White "Jospem"]
[Black "GodzillaChessYoutube"]
[Result "1-0"]
[WhiteElo "3039"]
[BlackElo "2696"]
[TimeControl "180+1"]
[EndTime "14:26:05 PDT"]
[Termination "Jospem won by resignation"]

1. e4 {[%clk 0:03:00.9]} 1... c5 {[%clk 0:02:59.8]} 2. Nf3 {[%clk 0:03:01.2]}
2... e6 {[%clk 0:03:00]} 3. c3 {[%clk 0:03:01.7]} 3... Nf6 {[%clk 0:02:59.7]} 4.
Bd3 {[%clk 0:03:00.3]} 4... d5 {[%clk 0:02:52.1]} 5. e5 {[%clk 0:02:59.8]} 5...
Nfd7 {[%clk 0:02:52.5]} 6. Bc2 {[%clk 0:03:00.4]} 6... Nc6 {[%clk 0:02:52.8]} 7.
d4 {[%clk 0:03:01]} 7... b6 {[%clk 0:02:37.2]} 8. O-O {[%clk 0:03:00.8]} 8...
Ba6 {[%clk 0:02:36]} 9. Re1 {[%clk 0:02:59.8]} 9... cxd4 {[%clk 0:02:35.9]} 10.
cxd4 {[%clk 0:03:00.5]} 10... Nb4 {[%clk 0:02:35.6]} 11. Nc3 {[%clk 0:03:01.3]}
11... Nxc2 {[%clk 0:02:34.9]} 12. Qxc2 {[%clk 0:03:02.2]} 12... Be7 {[%clk
0:02:25]} 13. Qd2 {[%clk 0:03:01.6]} 13... O-O {[%clk 0:02:19.5]} 14. Rd1 {[%clk
0:03:00.4]} 14... Qc7 {[%clk 0:02:12.4]} 15. Qf4 {[%clk 0:02:59.6]} 15... h6
{[%clk 0:01:54.6]} 16. Qg4 {[%clk 0:02:54.6]} 16... Kh8 {[%clk 0:01:54.6]} 17.
Qh5 {[%clk 0:02:53.6]} 17... Kh7 {[%clk 0:01:20.3]} 18. Bf4 {[%clk 0:02:46]}
18... Qd8 {[%clk 0:01:15.5]} 19. h4 {[%clk 0:02:40.8]} 19... Qe8 {[%clk
0:01:14.1]} 20. Qg4 {[%clk 0:02:37.5]} 20... Rg8 {[%clk 0:01:08]} 21. Rd2 {[%clk
0:02:33.9]} 21... Nf8 {[%clk 0:01:03.8]} 22. Re1 {[%clk 0:02:33.6]} 22... Rc8
{[%clk 0:01:03.5]} 23. Re3 {[%clk 0:02:33.2]} 23... b5 {[%clk 0:00:58.7]} 24. a3
{[%clk 0:02:32.9]} 24... Rc7 {[%clk 0:00:54.2]} 25. b4 {[%clk 0:02:23.5]} 25...
Bc8 {[%clk 0:00:53.8]} 26. Qh3 {[%clk 0:02:19.2]} 26... Rc4 {[%clk 0:00:52.9]}
27. Bg5 {[%clk 0:02:13.5]} 27... Ng6 {[%clk 0:00:48.4]} 28. h5 {[%clk
0:02:09.5]} 28... Nf8 {[%clk 0:00:44.6]} 29. Bxe7 {[%clk 0:02:09.7]} 29... Qxe7
{[%clk 0:00:45.5]} 30. Nxb5 {[%clk 0:02:07.9]} 30... Bd7 {[%clk 0:00:39.3]} 31.
Nd6 {[%clk 0:02:07.7]} 31... Rc1+ {[%clk 0:00:38.2]} 32. Re1 {[%clk 0:02:08.3]}
32... Rc7 {[%clk 0:00:36.8]} 33. Rdd1 {[%clk 0:02:03.4]} 33... f5 {[%clk
0:00:35.4]} 34. Rc1 {[%clk 0:02:02.8]} 34... Ba4 {[%clk 0:00:34.3]} 35. Qh4
{[%clk 0:02:02.2]} 35... Qxh4 {[%clk 0:00:30.3]} 36. Nxh4 {[%clk 0:02:03.1]}
36... Rxc1 {[%clk 0:00:30.8]} 37. Rxc1 {[%clk 0:02:03.5]} 37... Nd7 {[%clk
0:00:31.2]} 38. Rc7 {[%clk 0:02:02]} 38... Ra8 {[%clk 0:00:30.2]} 39. Ng6 {[%clk
0:02:01.6]} 39... a6 {[%clk 0:00:26.5]} 40. Kh2 {[%clk 0:02:01]} 40... Kg8
{[%clk 0:00:24.3]} 41. f3 {[%clk 0:01:59]} 41... Nf8 {[%clk 0:00:24]} 42. Nf4
{[%clk 0:01:56.2]} 42... Bd1 {[%clk 0:00:20]} 43. Re7 {[%clk 0:01:53.2]} 43...
a5 {[%clk 0:00:16.8]} 44. b5 {[%clk 0:01:53.7]} 44... a4 {[%clk 0:00:16.6]} 45.
b6 {[%clk 0:01:53.9]} 45... Rb8 {[%clk 0:00:16]} 46. b7 {[%clk 0:01:54.3]} 1-0

[Event "Late-Titled-Tuesday-Blitz-April-02-2024"]
[Site "Chess.com"]
[Date "2024.04.02"]
[Round "3"]
[White "Onthequiet"]
[Black "Alexei_Gubajdullin"]
[Result "0-1"]
[WhiteElo "2426"]
[BlackElo "2620"]
[TimeControl "180+1"]
[EndTime "14:26:12 PDT"]
[Termination "Alexei_Gubajdullin won by resignation"]

1. d4 {[%clk 0:03:00]} 1... d6 {[%clk 0:03:00.9]} 2. Nf3 {[%clk 0:02:59.9]} 2...
Nf6 {[%clk 0:02:59.7]} 3. Bg5 {[%clk 0:03:00.3]} 3... Ne4 {[%clk 0:02:59.2]} 4.
Bh4 {[%clk 0:03:00.4]} 4... g6 {[%clk 0:02:57]} 5. c3 {[%clk 0:02:59.8]} 5...
Bg7 {[%clk 0:02:55.8]} 6. Nbd2 {[%clk 0:03:00.3]} 6... Nxd2 {[%clk 0:02:52]} 7.
Qxd2 {[%clk 0:02:59.9]} 7... O-O {[%clk 0:02:51.5]} 8. e3 {[%clk 0:02:57.5]}
8... Qe8 {[%clk 0:02:51.2]} 9. Be2 {[%clk 0:02:46.8]} 9... e5 {[%clk 0:02:50.6]}
10. O-O {[%clk 0:02:47.2]} 10... e4 {[%clk 0:02:44.9]} 11. Ne1 {[%clk
0:02:46.8]} 11... f5 {[%clk 0:02:43.7]} 12. d5 {[%clk 0:02:38.8]} 12... Nd7
{[%clk 0:02:41.4]} 13. Bg3 {[%clk 0:02:38.2]} 13... Ne5 {[%clk 0:02:38.4]} 14.
Bxe5 {[%clk 0:02:38.1]} 14... Bxe5 {[%clk 0:02:37.9]} 15. g3 {[%clk 0:02:38.6]}
15... g5 {[%clk 0:02:37.2]} 16. Ng2 {[%clk 0:02:35.9]} 16... Qg6 {[%clk
0:02:35.1]} 17. Kh1 {[%clk 0:02:16.2]} 17... Bd7 {[%clk 0:02:34.7]} 18. a4
{[%clk 0:02:11.1]} 18... h5 {[%clk 0:02:33.3]} 19. h4 {[%clk 0:02:07.4]} 19...
f4 {[%clk 0:02:27.4]} 20. gxf4 {[%clk 0:02:05.9]} 20... gxf4 {[%clk 0:02:27.1]}
21. Nxf4 {[%clk 0:02:02.2]} 21... Qf5 {[%clk 0:02:24.1]} 22. Rg1+ {[%clk
0:01:56]} 22... Kf7 {[%clk 0:02:02.9]} 23. Rg5 {[%clk 0:01:45.6]} 23... Qf6
{[%clk 0:02:02.8]} 24. Bxh5+ {[%clk 0:01:22]} 24... Ke7 {[%clk 0:02:02.6]} 25.
Ng6+ {[%clk 0:01:15.3]} 25... Kd8 {[%clk 0:02:01.5]} 26. Nxf8 {[%clk 0:01:08.2]}
26... Qxf8 {[%clk 0:01:58.6]} 27. Rag1 {[%clk 0:01:01.7]} 27... Qh6 {[%clk
0:01:56.6]} 28. Qe2 {[%clk 0:00:44.2]} 28... Ke7 {[%clk 0:01:51.5]} 29. f4
{[%clk 0:00:23.1]} 29... exf3 {[%clk 0:01:47.4]} 30. Qxf3 {[%clk 0:00:20.7]}
30... Rf8 {[%clk 0:01:46.7]} 31. Qe4 {[%clk 0:00:20.2]} 31... Kd8 {[%clk
0:01:41.6]} 32. Qg6 {[%clk 0:00:17.7]} 32... Qh8 {[%clk 0:01:33.7]} 33. Kg2
{[%clk 0:00:11.5]} 33... Be8 {[%clk 0:01:31.6]} 34. Bg4 {[%clk 0:00:10.4]} 34...
Bxg6 {[%clk 0:01:30.3]} 35. Rxg6 {[%clk 0:00:11.3]} 35... Qxh4 {[%clk
0:01:29.2]} 0-1